fUSD/lending_fUSD_20250109
["ID","MTS","AMOUNT","RATE_DAILY","PERIOD"]
[348322695,1736445043086,-500.0,9.967e-05,2]
[348322696,1736445043094,-2257.86,9.967e-05,2]
[348322697,1736445043104,-500.0,9.967e-05,2]
[348322698,1736445043113,-500.0,9.967e-05,2]
[348322699,1736445043122,-500.0,9.967e-05,2]
[348322700,1736445043131,-500.0,9.967e-05,2]
[348322701,1736445043140,-497.82729431,9.967e-05,2]
[348322702,1736445043149,-500.0,9.967e-05,2]
[348322703,1736445043158,-500.0,9.967e-05,2]
[348322704,1736445043167,-500.0,9.967e-05,2]
[348322705,1736445043177,-500.0,9.967e-05,2]
[348322706,1736445043186,-500.0,9.967e-05,2]
[348322708,1736445043195,-500.0,9.967e-05,2]
[348322709,1736445043204,-542.96,9.967e-05,2]
[348322711,1736445043213,-500.0,9.967e-05,2]
[348322713,1736445043222,-500.0,9.967e-05,2]
[348322714,1736445043231,-500.0,9.967e-05,2]
[348322715,1736445043241,-1602.35,9.967e-05,2]
[348322716,1736445043250,-646.67,9.967e-05,2]
[348322717,1736445043259,-500.0,9.967e-05,2]
[348322718,1736445043268,-240.44055334,9.967e-05,2]
[348322719,1736445043283,-204.90952584,9.967e-05,2]
[348322721,1736445043292,-500.0,9.967e-05,2]
[348322722,1736445043302,-500.0,9.967e-05,2]
[348322724,1736445043312,-3647.11,9.967e-05,2]
[348322726,1736445043321,-500.0,9.967e-05,2]
[348322727,1736445043330,-1094.76,9.967e-05,2]
[348322728,1736445043339,-500.0,9.967e-05,2]
[348322729,1736445043348,-740.12,9.967e-05,2]
[348322730,1736445043357,-500.0,9.967e-05,2]
[348322731,1736445043366,-500.0,9.967e-05,2]
[348322732,1736445043375,-500.0,9.967e-05,2]
[348322733,1736445043384,-1139.06,9.967e-05,2]
[348322734,1736445043393,-804.02,9.967e-05,2]
[348322735,1736445043403,-500.0,9.967e-05,2]
[348322736,1736445043413,-500.0,9.967e-05,2]
[348322737,1736445043423,-500.0,9.967e-05,2]
[348322738,1736445043432,-641.62,9.967e-05,2]
[348322739,1736445043442,-500.0,9.967e-05,2]
[348322740,1736445043454,-500.0,9.967e-05,2]
[348322741,1736445043468,-500.0,9.967e-05,2]
[348322742,1736445043477,-2097.6,9.967e-05,2]
[348322743,1736445043486,-500.0,9.967e-05,2]
[348322744,1736445043495,-500.0,9.967e-05,2]
[348322745,1736445043505,-500.0,9.967e-05,2]
[348322746,1736445043514,-500.0,9.967e-05,2]
[348322747,1736445043523,-500.0,9.967e-05,2]
[348322748,1736445043539,-7895.7,9.967e-05,2]
[348322749,1736445043548,-500.0,9.967e-05,2]
[348322750,1736445043557,-3771.66,9.967e-05,2]
[348322751,1736445043567,-500.0,9.967e-05,2]
[348322752,1736445043576,-500.0,9.967e-05,2]
[348322753,1736445043586,-500.0,9.967e-05,2]
[348322754,1736445043596,-500.0,9.967e-05,2]
[348322755,1736445043605,-500.0,9.967e-05,2]
[348322756,1736445043615,-500.0,9.967e-05,2]
[348322757,1736445043625,-500.0,9.967e-05,2]
[348322758,1736445043635,-500.0,9.967e-05,2]
[348322759,1736445043644,-500.0,9.967e-05,2]
[348322760,1736445043654,-500.0,9.967e-05,2]
[348322761,1736445043663,-500.0,9.967e-05,2]
[348322762,1736445043673,-500.0,9.967e-05,2]
[348322763,1736445043683,-500.0,9.967e-05,2]
[348322764,1736445043693,-500.0,9.967e-05,2]
[348322765,1736445043703,-500.0,9.967e-05,2]
[348322766,1736445043713,-870.63,9.967e-05,2]
[348322767,1736445043722,-500.0,9.967e-05,2]
[348322768,1736445043733,-500.0,9.967e-05,2]
[348322769,1736445043743,-500.0,9.967e-05,2]
[348322770,1736445043755,-500.0,9.967e-05,2]
[348322771,1736445043766,-2292.14,9.967e-05,2]
[348322772,1736445043780,-436.680334,9.967e-05,2]
[348322773,1736445043790,-2614.75,9.967e-05,2]
[348322774,1736445043800,-662.16,9.967e-05,2]
[348322775,1736445043809,-500.0,9.967e-05,2]
[348322776,1736445043819,-500.0,9.967e-05,2]
[348322777,1736445043829,-500.0,9.967e-05,2]
[348322778,1736445043839,-500.0,9.967e-05,2]
[348322779,1736445043848,-500.0,9.967e-05,2]
[348322780,1736445043859,-1401.24,9.967e-05,2]
[348322781,1736445043870,-769.38,9.967e-05,2]
[348322782,1736445043880,-500.0,9.967e-05,2]
[348322783,1736445043891,-500.0,9.967e-05,2]
[348322784,1736445043901,-500.0,9.967e-05,2]
[348322785,1736445043912,-500.0,9.967e-05,2]
[348322786,1736445043924,-500.0,9.967e-05,2]
[348322787,1736445043934,-500.0,9.967e-05,2]
[348322788,1736445043944,-500.0,9.967e-05,2]
[348322789,1736445043954,-2353.93,9.967e-05,2]
[348322790,1736445043963,-500.0,9.967e-05,2]
[348322791,1736445043973,-500.0,9.967e-05,2]
[348322792,1736445043982,-1095.26,9.967e-05,2]
[348322793,1736445043992,-577.19,9.967e-05,2]
[348322794,1736445044001,-511.6,9.967e-05,2]
[348322795,1736445044011,-500.0,9.967e-05,2]
[348322796,1736445044021,-1149.2,9.967e-05,2]
[348322797,1736445044035,-500.0,9.967e-05,2]
[348322798,1736445044046,-500.0,9.967e-05,2]
[348322799,1736445044055,-479.567355,9.967e-05,2]
[348322800,1736445044065,-500.0,9.967e-05,2]
[348322801,1736445044075,-500.0,9.967e-05,2]
[348322802,1736445044085,-1992.84,9.967e-05,2]
[348322803,1736445044096,-501.07789821,9.967e-05,2]
[348322804,1736445044106,-500.94003308,9.967e-05,2]
[348322805,1736445044116,-500.0,9.967e-05,2]
[348322806,1736445044126,-500.0,9.967e-05,2]
[348322807,1736445044137,-500.0,9.967e-05,2]
[348322808,1736445044148,-500.0,9.967e-05,2]
[348322809,1736445044158,-500.0,9.967e-05,2]
[348322810,1736445044169,-832.87,9.967e-05,2]
[348322811,1736445044178,-500.0,9.967e-05,2]
[348322812,1736445044188,-822.98,9.967e-05,2]
[348322813,1736445044198,-500.0,9.967e-05,2]
[348322814,1736445044207,-500.0,9.967e-05,2]
[348322815,1736445044217,-500.0,9.967e-05,2]
[348322816,1736445044226,-500.0,9.967e-05,2]
[348322817,1736445044237,-500.0,9.967e-05,2]
[348322818,1736445044246,-500.0,9.967e-05,2]
[348322819,1736445044257,-500.0,9.967e-05,2]
[348322820,1736445044266,-500.0,9.967e-05,2]
[348322821,1736445044280,-749.02,9.967e-05,2]
[348322822,1736445044291,-500.0,9.967e-05,2]
[348322823,1736445044300,-609.34,9.967e-05,2]
[348322824,1736445044310,-500.0,9.967e-05,2]
[348322825,1736445044320,-500.0,9.967e-05,2]
[348322826,1736445044330,-500.0,9.967e-05,2]
[348322827,1736445044339,-1200.82,9.967e-05,2]
[348322828,1736445044349,-500.0,9.967e-05,2]
[348322829,1736445044358,-500.0,9.967e-05,2]
[348322830,1736445044367,-864.01,9.967e-05,2]
[348322831,1736445044377,-503.78860199,9.967e-05,2]
[348322832,1736445044387,-500.0,9.967e-05,2]
[348322833,1736445044396,-500.0,9.967e-05,2]
[348322834,1736445044407,-500.12452107,9.967e-05,2]
[348322835,1736445044416,-1068.95,9.967e-05,2]
[348322836,1736445044426,-500.0,9.967e-05,2]
[348322837,1736445044435,-597.39982455,9.967e-05,2]
[348322838,1736445044445,-500.0,9.967e-05,2]
[348322839,1736445044459,-915.32,9.967e-05,2]
[348322840,1736445044468,-500.0,9.967e-05,2]
[348322841,1736445044478,-500.0,9.967e-05,2]
[348322842,1736445044488,-500.0,9.967e-05,2]
[348322843,1736445044499,-500.0,9.967e-05,2]
[348322844,1736445044509,-661.21,9.967e-05,2]
[348322845,1736445044518,-500.0,9.967e-05,2]
[348322846,1736445044531,-504.08117937,9.967e-05,2]
[348322847,1736445044541,-500.0,9.967e-05,2]
[348322848,1736445044551,-610.29,9.967e-05,2]
[348322849,1736445044561,-500.0,9.967e-05,2]
[348322850,1736445044571,-500.0,9.967e-05,2]
[348322851,1736445044581,-500.0,9.967e-05,2]
[348322852,1736445044591,-1573.31,9.967e-05,2]
[348322853,1736445044601,-500.0,9.967e-05,2]
[348322854,1736445044612,-500.0,9.967e-05,2]
[348322855,1736445044623,-500.0,9.967e-05,2]
[348322856,1736445044634,-500.0,9.967e-05,2]
[348322857,1736445044644,-861.03,9.967e-05,2]
[348322858,1736445044655,-500.0,9.967e-05,2]
[348322859,1736445044666,-500.0,9.967e-05,2]
[348322860,1736445044676,-3452.34,9.967e-05,2]
[348322861,1736445044687,-500.0,9.967e-05,2]
[348322862,1736445044697,-500.0,9.967e-05,2]
[348322863,1736445044708,-445.85384434,9.967e-05,2]
[348322864,1736445044719,-886.82,9.967e-05,2]
[348322865,1736445044730,-500.0,9.967e-05,2]
[348322866,1736445044741,-1572.61,9.967e-05,2]
[348322867,1736445044752,-500.0,9.967e-05,2]
[348322868,1736445044762,-500.0,9.967e-05,2]
[348322869,1736445044772,-500.0,9.967e-05,2]
[348322870,1736445044785,-500.0,9.967e-05,2]
[348322871,1736445044795,-500.0,9.967e-05,2]
[348322872,1736445044804,-500.0,9.967e-05,2]
[348322873,1736445044814,-500.0,9.967e-05,2]
[348322874,1736445044824,-500.37884033,9.967e-05,2]
[348322875,1736445044834,-500.0,9.967e-05,2]
[348322876,1736445044844,-1149.4889,9.968e-05,2]
[348322877,1736445044854,-200.0,9.978e-05,2]
[348322878,1736445044864,-253.91513887,0.0001,2]
[348322879,1736445044873,-1000.0,0.0001,10]
[348322880,1736445044883,-219.07594504,0.0001,2]
[348322881,1736445044893,-500.0,0.00010066,2]
[348322882,1736445044902,-569.16,0.00010067,2]
[348322883,1736445044912,-602.69,0.00010067,2]
[348322884,1736445044921,-500.0,0.00010067,2]
[348322885,1736445044931,-500.0,0.00010067,2]
[348322886,1736445044941,-500.0,0.00010067,2]
[348322887,1736445044951,-500.0,0.00010067,2]
[348322888,1736445044961,-895.05,0.00010067,2]
[348322889,1736445044971,-500.0,0.00010067,2]
[348322890,1736445044981,-689.1,0.00010067,2]
[348322891,1736445044991,-500.0,0.00010067,2]
[348322892,1736445045001,-698.8,0.00010067,2]
[348322893,1736445045010,-500.0,0.00010067,2]
[348322894,1736445045019,-500.0,0.00010067,2]
[348322895,1736445045032,-500.0,0.00010067,2]
[348322896,1736445045041,-500.0,0.00010067,2]
[348322897,1736445045051,-500.0,0.00010067,2]
[348322898,1736445045061,-500.0,0.00010067,2]
[348322899,1736445045071,-500.0,0.00010067,2]
[348322900,1736445045081,-500.0,0.00010067,2]
[348322901,1736445045091,-500.0,0.00010067,2]
[348322902,1736445045100,-2858.44,0.00010067,2]
[348322903,1736445045110,-2074.84,0.00010067,2]
[348322904,1736445045120,-1487.55,0.00010067,2]
[348322905,1736445045129,-1062.87,0.00010067,2]
[348322906,1736445045139,-2223.86,0.00010067,2]
[348322907,1736445045149,-500.0,0.00010067,2]
[348322908,1736445045158,-703.22,0.00010067,2]
[348322909,1736445045167,-1698.0,0.00010067,2]
[348322910,1736445045177,-732.02,0.00010067,2]
[348322911,1736445045187,-530.24,0.00010067,2]
[348322912,1736445045196,-500.0,0.00010068,2]
[348322913,1736445045206,-500.0,0.00010068,2]
[348322914,1736445045216,-500.0,0.00010068,2]
[348322915,1736445045225,-500.0,0.00010068,2]
[348322916,1736445045235,-500.0,0.00010068,2]
[348322917,1736445045244,-528.97,0.00010068,2]
[348322918,1736445045253,-500.0,0.00010068,2]
[348322919,1736445045263,-500.0,0.00010068,2]
[348322920,1736445045272,-500.0,0.00010068,2]
[348322921,1736445045284,-626.2396973,0.00010068,2]
[348322922,1736445045294,-424.77,0.00010068,2]
[348322923,1736445045303,-500.0,0.00010068,2]
[348322924,1736445045313,-500.0,0.00010068,2]
[348322925,1736445045323,-500.0,0.00010068,2]
[348322926,1736445045333,-500.0,0.00010068,2]
[348322927,1736445045342,-985.92,0.00010068,2]
[348322928,1736445045352,-227.24753873,0.00010068,2]
[348322929,1736445045361,-500.0,0.00010068,2]
[348322930,1736445045372,-500.0,0.00010068,2]
[348322931,1736445045381,-500.0,0.00010068,2]
[348322932,1736445045391,-500.0,0.00010068,2]
[348322933,1736445045401,-500.0,0.00010068,2]
[348322934,1736445045411,-500.0,0.00010068,2]
[348322935,1736445045420,-500.0,0.00010068,2]
[348322936,1736445045430,-651.26,0.00010068,2]
[348322937,1736445045440,-500.0,0.00010068,2]
[348322938,1736445045450,-500.0,0.00010068,2]
[348322939,1736445045462,-500.0,0.00010068,2]
[348322940,1736445045472,-373.92236187,0.00010068,2]
[348322941,1736445045482,-500.0,0.00010068,2]
[348322942,1736445045492,-1000.0,0.00010068,2]
[348322943,1736445045504,-500.0,0.00010068,2]
[348322944,1736445045514,-500.0,0.00010068,2]
[348322945,1736445045524,-500.0,0.00010068,2]
[348322946,1736445045537,-500.0,0.00010068,2]
[348322947,1736445045548,-500.0,0.00010068,2]
[348322948,1736445045558,-500.0,0.00010068,2]
[348322949,1736445045568,-500.0,0.00010068,2]
[348322951,1736445045578,-192.85,0.00010068,2]
[348322953,1736445045588,-500.0,0.00010068,2]
[348322955,1736445045598,-500.0,0.00010068,2]
[348322957,1736445045608,-500.0,0.00010068,2]
[348322958,1736445045618,-500.0,0.00010068,2]
[348322959,1736445045629,-500.0,0.00010068,2]
[348322960,1736445045638,-500.0,0.00010068,2]
[348322961,1736445045648,-500.0,0.00010068,2]
[348322962,1736445045659,-500.0,0.00010068,2]
[348322963,1736445045671,-500.0,0.00010068,2]
[348322964,1736445045682,-500.0,0.00010068,2]
[348322965,1736445045693,-500.0,0.00010068,2]
[348322966,1736445045704,-500.0,0.00010068,2]
[348322967,1736445045715,-500.0,0.00010068,2]
[348322969,1736445045725,-500.0,0.00010068,2]
[348322970,1736445045735,-500.0,0.00010068,2]
[348322971,1736445045746,-1093.65,0.00010068,2]
[348322972,1736445045756,-500.0,0.00010068,2]
[348322974,1736445045767,-500.0,0.00010068,2]
[348322975,1736445045779,-500.0,0.00010068,2]
[348322976,1736445045790,-500.0,0.00010068,2]
[348322977,1736445045799,-500.0,0.00010068,2]
[348322978,1736445045810,-500.0,0.00010068,2]
[348322979,1736445046022,-500.0,0.00010068,2]
[348322980,1736445046036,-594.57,0.00010068,2]
[348322981,1736445046046,-500.0,0.00010068,2]
[348322982,1736445046056,-500.0,0.00010068,2]
[348322983,1736445046066,-500.0,0.00010068,2]
[348322984,1736445046076,-631.02,0.00010068,2]
[348322985,1736445046086,-500.0,0.00010068,2]
[348322986,1736445046096,-500.0,0.00010068,2]
[348322987,1736445046107,-500.0,0.00010068,2]
[348322988,1736445046118,-500.0,0.00010068,2]
[348322989,1736445046128,-500.0,0.00010068,2]
[348322990,1736445046139,-500.0,0.00010068,2]
[348322991,1736445046148,-619.56,0.00010068,2]
[348322992,1736445046159,-500.0,0.00010068,2]
[348322993,1736445046173,-500.0,0.00010068,2]
[348322994,1736445046183,-500.0,0.00010068,2]
[348322995,1736445046193,-500.0,0.00010068,2]
[348322996,1736445046203,-500.0,0.00010068,2]
[348322997,1736445046212,-500.0,0.00010068,2]
[348322998,1736445046222,-500.0,0.00010068,2]
[348322999,1736445046232,-500.0,0.00010068,2]
[348323000,1736445046242,-500.0,0.00010068,2]
[348323001,1736445046252,-500.0,0.00010068,2]
[348323002,1736445046262,-500.0,0.00010068,2]
[348323003,1736445046272,-500.0,0.00010068,2]
[348323004,1736445046286,-500.0,0.00010068,2]
[348323005,1736445046295,-500.0,0.00010068,2]
[348323006,1736445046305,-500.0,0.00010068,2]
[348323007,1736445046315,-500.0,0.00010068,2]
[348323008,1736445046324,-737.91,0.00010068,2]
[348323009,1736445046334,-500.0,0.00010068,2]
[348323010,1736445046344,-500.0,0.00010068,2]
[348323011,1736445046353,-500.0,0.00010068,2]
[348323012,1736445046363,-500.0,0.00010068,2]
[348323013,1736445046373,-500.0,0.00010068,2]
[348323014,1736445046383,-518.73,0.00010068,2]
[348323015,1736445046393,-500.0,0.00010068,2]
[348323016,1736445046402,-500.0,0.00010068,2]
[348323017,1736445046412,-500.0,0.00010068,2]
[348323018,1736445046422,-500.0,0.00010068,2]
[348323019,1736445046432,-555.32,0.00010068,2]
[348323020,1736445046442,-500.0,0.00010068,2]
[348323021,1736445046457,-500.0,0.00010068,2]
[348323022,1736445046468,-500.0,0.00010068,2]
[348323023,1736445046479,-500.0,0.00010068,2]
[348323024,1736445046491,-500.0,0.00010068,2]
[348323025,1736445046503,-500.0,0.00010068,2]
[348323026,1736445046513,-524.35,0.00010068,2]
[348323027,1736445046524,-661.07,0.00010068,2]
[348323028,1736445046539,-500.0,0.00010068,2]
[348323029,1736445046550,-500.0,0.00010068,2]
[348323030,1736445046559,-500.0,0.00010068,2]
[348323031,1736445046569,-500.0,0.00010068,2]
[348323032,1736445046579,-591.12,0.00010068,2]
[348323033,1736445046588,-500.0,0.00010068,2]
[348323034,1736445046598,-500.0,0.00010068,2]
[348323035,1736445046608,-500.0,0.00010068,2]
[348323036,1736445046618,-500.0,0.00010068,2]
[348323037,1736445046628,-646.2,0.00010068,2]
[348323038,1736445046638,-500.0,0.00010068,2]
[348323039,1736445046647,-500.0,0.00010068,2]
[348323040,1736445046656,-500.0,0.00010068,2]
[348323041,1736445046665,-500.0,0.00010068,2]
[348323042,1736445046673,-500.0,0.00010068,2]
[348323043,1736445046683,-500.0,0.00010068,2]
[348323044,1736445046693,-500.0,0.00010068,2]
[348323045,1736445046702,-500.0,0.00010068,2]
[348323046,1736445046712,-500.0,0.00010068,2]
[348323047,1736445046722,-500.0,0.00010068,2]
[348323048,1736445046732,-500.0,0.00010068,2]
[348323049,1736445046742,-500.0,0.00010068,2]
[348323050,1736445046752,-500.0,0.00010068,2]
[348323051,1736445046762,-500.0,0.00010068,2]
[348323052,1736445046772,-500.0,0.00010068,2]
[348323053,1736445046782,-500.0,0.00010068,2]
[348323054,1736445046792,-500.0,0.00010068,2]
[348323055,1736445046802,-500.0,0.00010068,2]
[348323056,1736445046812,-500.0,0.00010068,2]
[348323057,1736445046821,-500.0,0.00010068,2]
[348323058,1736445046831,-500.0,0.00010068,2]
[348323059,1736445046842,-500.0,0.00010068,2]
[348323060,1736445046852,-500.0,0.00010068,2]
[348323061,1736445046862,-500.0,0.00010068,2]
[348323062,1736445046872,-500.0,0.00010068,2]
[348323063,1736445046881,-500.0,0.00010068,2]
[348323064,1736445046891,-500.0,0.00010068,2]
[348323065,1736445046901,-753.77,0.00010068,2]
[348323066,1736445046910,-500.0,0.00010068,2]
[348323067,1736445046920,-745.02,0.00010068,2]
[348323068,1736445046930,-500.0,0.00010068,2]
[348323069,1736445046941,-500.0,0.00010068,2]
[348323070,1736445046952,-500.0,0.00010068,2]
[348323071,1736445046961,-575.50446804,0.00010068,2]
[348323072,1736445046972,-500.0,0.00010068,2]
[348323073,1736445046982,-500.0,0.00010068,2]
[348323074,1736445046992,-500.0,0.00010068,2]
[348323075,1736445047002,-500.0,0.00010068,2]
[348323076,1736445047012,-500.0,0.00010068,2]
[348323078,1736445047022,-500.0,0.00010068,2]
[348323080,1736445047032,-500.0,0.00010068,2]
[348323082,1736445047041,-529.95,0.00010068,2]
[348323084,1736445047051,-500.0,0.00010068,2]
[348323086,1736445047060,-500.0,0.00010068,2]
[348323088,1736445047070,-624.32864061,0.00010068,2]
[348323090,1736445047079,-166.52,0.00010068,2]
[348323092,1736445047088,-500.0,0.00010068,2]
[348323094,1736445047098,-500.0,0.00010068,2]
[348323096,1736445047108,-500.0,0.00010068,2]
[348323098,1736445047118,-587.21,0.00010068,2]
[348323100,1736445047128,-500.0,0.00010068,2]
[348323101,1736445047138,-660.1,0.00010068,2]
[348323102,1736445047148,-500.0,0.00010068,2]
[348323103,1736445047158,-500.0,0.00010068,2]
[348323104,1736445047168,-503.73,0.00010068,2]
[348323105,1736445047178,-500.0,0.00010068,2]
[348323106,1736445047188,-500.0,0.00010068,2]
[348323107,1736445047198,-500.0,0.00010068,2]
[348323108,1736445047207,-500.0,0.00010068,2]
[348323109,1736445047217,-500.0,0.00010068,2]
[348323110,1736445047227,-562.72,0.00010068,2]
[348323111,1736445047238,-545.73,0.00010068,2]
[348323112,1736445047249,-500.0,0.00010068,2]
[348323113,1736445047259,-500.0,0.00010068,2]
[348323114,1736445047270,-500.0,0.00010068,2]
[348323115,1736445047285,-500.0,0.00010068,2]
[348323116,1736445047294,-500.0,0.00010068,2]
[348323117,1736445047304,-3242.54,0.00010068,2]
[348323118,1736445047313,-1018.23,0.00010068,2]
[348323119,1736445047324,-500.0,0.00010068,2]
[348323120,1736445047333,-500.0,0.00010068,2]
[348323121,1736445047343,-1137.61,0.00010068,2]
[348323122,1736445047353,-500.0,0.00010068,2]
[348323123,1736445047362,-500.0,0.00010068,2]
[348323124,1736445047372,-517.86,0.00010068,2]
[348323125,1736445047383,-743.81,0.00010068,2]
[348323126,1736445047393,-500.0,0.00010068,2]
[348323127,1736445047402,-7151.48,0.00010068,2]
[348323128,1736445047412,-500.0,0.00010068,2]
[348323129,1736445047422,-500.0,0.00010068,2]
[348323130,1736445047432,-638.87,0.00010068,2]
[348323131,1736445047443,-500.0,0.00010068,2]
[348323132,1736445047456,-604.69,0.00010068,2]
[348323133,1736445047466,-500.0,0.00010068,2]
[348323134,1736445047476,-500.0,0.00010069,2]
[348323135,1736445047485,-898.09,0.00010069,2]
[348323136,1736445047497,-500.0,0.00010069,2]
[348323137,1736445047508,-500.0,0.00010069,2]
[348323138,1736445047518,-812.75,0.00010069,2]
[348323139,1736445047528,-1270.57,0.00010069,2]
[348323140,1736445047546,-1551.69,0.00010069,2]
[348323141,1736445047557,-1033.83,0.00010069,2]
[348323142,1736445047566,-2553.98,0.00010069,2]
[348323143,1736445047576,-2053.02,0.00010069,2]
[348323144,1736445047586,-2446.73,0.00010069,2]
[348323145,1736445047597,-1335.79,0.00010069,2]
[348323146,1736445047607,-500.0,0.00010069,2]
[348323147,1736445047617,-2728.27,0.00010069,2]
[348323148,1736445047627,-500.0,0.00010069,2]
[348323149,1736445047637,-921.37,0.00010069,2]
[348323150,1736445047647,-876.75,0.00010069,2]
[348323151,1736445047657,-1384.37,0.00010069,2]
[348323152,1736445047667,-1491.35,0.00010069,2]
[348323153,1736445047676,-1411.08,0.00010069,2]
[348323154,1736445047686,-1705.45,0.00010069,2]
[348323155,1736445047695,-1000.0,0.00010082,2]
[348323156,1736445047705,-159.96,0.00010137,2]
[348323157,1736445047715,-295.61,0.00010194,2]
[348323158,1736445047724,-562.78,0.0001024,2]
[348323159,1736445047734,-2880.05,0.0001024,2]
[348323160,1736445047743,-4014.68,0.0001024,2]
[348323161,1736445047754,-2100.5,0.0001024,2]
[348323162,1736445047764,-500.0,0.0001024,2]
[348323163,1736445047774,-1438.14,0.0001024,2]
[348323164,1736445047789,-3285.44,0.0001024,2]
[348323165,1736445047799,-500.0,0.0001024,2]
[348323166,1736445047809,-500.0,0.0001024,2]
[348323167,1736445047820,-500.0,0.0001024,2]
[348323168,1736445047830,-500.0,0.0001024,2]
[348323169,1736445047840,-941.34,0.0001024,2]
[348323170,1736445047849,-500.0,0.0001024,2]
[348323171,1736445047859,-815.78,0.00010241,2]
[348323172,1736445047868,-500.0,0.00010241,2]
[348323173,1736445047878,-500.0,0.00010241,2]
[348323174,1736445047888,-1168.48,0.00010241,2]
[348323175,1736445047898,-500.0,0.00010241,2]
[348323176,1736445047908,-564.15,0.00010241,2]
[348323177,1736445047918,-546.34,0.00010241,2]
[348323178,1736445047928,-500.0,0.00010241,2]
[348323179,1736445047939,-500.0,0.00010241,2]
[348323180,1736445047949,-500.0,0.00010241,2]
[348323181,1736445047958,-748.91,0.00010241,2]
[348323182,1736445047968,-500.0,0.00010241,2]
[348323183,1736445047978,-500.0,0.00010241,2]
[348323184,1736445047988,-555.4,0.00010241,2]
[348323185,1736445047998,-500.0,0.00010241,2]
[348323186,1736445048008,-500.0,0.00010241,2]
[348323187,1736445048017,-500.0,0.00010241,2]
[348323188,1736445048027,-715.43,0.00010241,2]
[348323189,1736445048041,-500.0,0.00010241,2]
[348323190,1736445048052,-500.0,0.00010241,2]
[348323191,1736445048062,-500.0,0.00010241,2]
[348323192,1736445048072,-500.0,0.00010241,2]
[348323193,1736445048082,-1079.05,0.00010241,2]
[348323194,1736445048091,-500.0,0.00010241,2]
[348323195,1736445048101,-539.13177234,0.00010241,2]
[348323196,1736445048111,-500.0,0.00010241,2]
[348323197,1736445048121,-588.27,0.00010241,2]
[348323198,1736445048131,-500.0,0.00010241,2]
[348323199,1736445048141,-500.0,0.00010241,2]
[348323200,1736445048151,-500.0,0.00010241,2]
[348323201,1736445048161,-668.81,0.00010241,2]
[348323202,1736445048171,-723.52,0.00010241,2]
[348323203,1736445048181,-500.0,0.00010241,2]
[348323204,1736445048191,-500.0,0.00010241,2]
[348323205,1736445048200,-718.01,0.00010241,2]
[348323206,1736445048211,-984.26,0.00010241,2]
[348323207,1736445048221,-500.0,0.00010241,2]
[348323208,1736445048232,-593.67,0.00010241,2]
[348323209,1736445048242,-500.0,0.00010241,2]
[348323210,1736445048252,-500.0,0.00010241,2]
[348323211,1736445048262,-500.0,0.00010241,2]
[348323212,1736445048271,-500.0,0.00010241,2]
[348323213,1736445048284,-500.0,0.00010241,2]
[348323214,1736445048294,-605.37537085,0.00010241,2]
[348323215,1736445048304,-1724.41,0.00010241,2]
[348323216,1736445048313,-500.0,0.00010241,2]
[348323217,1736445048324,-500.0,0.00010241,2]
[348323218,1736445048334,-500.0,0.00010241,2]